Workbook

Sheet Sheet1
D1: Powers of a Matrix
B3: This program lets you investigate the
D4: effects of successive powers An
D5: of a matrix A on a vector x0:
D6: y1=Ax0, y2 = Ax1 = A2x0, y3 = Ax2 = A3x0, ...
A11: First enter the values for the matrix A:
E12: 0.3 | F12: -0.6
E13: 0.6 | F13: 0.3
A16: Enter the values for the initial vector X0:
E17: 5 | J17: x0 = | K17: 5 | L17: x1 = | M17: =Sheet2!F5 -> -2.5 | N17: x2 = | O17: =IF(Sheet2!H4<=n,Sheet2!H1,"") -> 4.05 | P17: x3 = | Q17: =IF(Sheet2!J4<=n,Sheet2!J1,"") -> -0.345 | R17: x4 = | S17: =IF(Sheet2!L4<=n,Sheet2!L1,"") ->  | T17: x5 = | U17: =IF(Sheet2!N4<=n,Sheet2!N1,"") ->  | V17: x5 = | W17: =IF(Sheet2!P4<=n,Sheet2!P1,"") -> 
E18: -2 | K18: -3 | M18: =Sheet2!F6 -> 2.4 | O18: =IF(Sheet2!H4<=n,Sheet2!H2,"") -> -0.78 | Q18: =IF(Sheet2!J4<=n,Sheet2!J2,"") -> 2.196 | S18: =IF(Sheet2!L4<=n,Sheet2!L2,"") ->  | U18: =IF(Sheet2!N4<=n,Sheet2!N2,"") ->  | W18: =IF(Sheet2!P4<=n,Sheet2!P2,"") -> 
B20: What is the highest power n (1 to 6)? | E20: =G20+1 -> 3 | F20: 62 | G20: 2
B23: Click each item below for suggestions and investigations
D24: Item 1
D25: Item 2
D26: Item 3
D27: Item 4
B31: Created by: Sheldon P. Gordon
B32: Farmingdale StateCollege
B33: Development of this module was supported by the
B34: NSF's Division of Undergraduate Education
B35: under grants DUE-0310123 and DUE-0442160.

Sheet Sheet2
A1: =Sheet1!E12 -> 0.3 | B1: 2 | D1: =Sheet1!$E$17 -> 5 | F1: =$A1*D1+$B1*D2 -> -2.5 | H1: =$A1*F1+$B1*F2 -> 4.05 | J1: =$A1*H1+$B1*H2 -> -0.345 | L1: =$A1*J1+$B1*J2 -> 4.2885 | N1: =$A1*L1+$B1*L2 -> 2.19015 | P1: =$A1*N1+$B1*N2 -> 6.074325
A2: =Sheet1!E13 -> 0.6 | B2: =Sheet1!F13 -> 0.3 | D2: =Sheet1!$E$18 -> -2 | F2: =$A2*D1+$B2*D2 -> 2.4 | H2: =$A2*F1+$B2*F2 -> -0.78 | J2: =$A2*H1+$B2*H2 -> 2.196 | L2: =$A2*J1+$B2*J2 -> 0.4518 | N2: =$A2*L1+$B2*L2 -> 2.70864 | P2: =$A2*N1+$B2*N2 -> 2.126682
D3: v0 | F3: v1 | H3: v2 | J3: v3 | L3: v4 | N3: v5 | P3: v6
D4: 0 | F4: 1 | H4: 2 | J4: 3 | L4: 4 | N4: 5 | P4: 6
A5: plotting points: | C5: 0 | D5: =D1 -> 5 | E5: 0 | F5: =F1 -> -2.5 | G5: 0 | H5: =IF(H4<=n,H1,0) -> 4.05 | I5: 0 | J5: =IF(J4<=n,J1,0) -> -0.345 | K5: 0 | L5: =IF(L4<=n,L1,0) -> 0 | M5: 0 | N5: =IF(N4<=n,N1,0) -> 0 | O5: 0 | P5: =IF(P4<=n,P1,0) -> 0
C6: 0 | D6: =D2 -> -2 | E6: 0 | F6: =F2 -> 2.4 | G6: 0 | H6: =IF(H4<=n,H2,0) -> -0.78 | I6: 0 | J6: =IF(J4<=n,J2,0) -> 2.196 | K6: 0 | L6: =IF(L4<=n,L2,0) -> 0 | M6: 0 | N6: =IF(N4<=n,N2,0) -> 0 | O6: 0 | P6: =IF(P4<=n,P2,0) -> 0
A8: vector points | C8: 0 | D8: =D1 -> 5 | E8: 0 | F8: =F1 -> -2.5 | G8: =IF(H$4<=n,G5,"") -> 0 | H8: =IF(H$4<=n,H5,"") -> 4.05 | I8: =IF(J$4<=n,I5,"") -> 0 | J8: =IF(J$4<=n,J5,"") -> -0.345 | K8: =IF(L$4<=n,K5,"") ->  | L8: =IF(L$4<=n,L5,"") ->  | M8: =IF(N$4<=n,M5,"") ->  | N8: =IF(N$4<=n,N5,"") ->  | O8: =IF(P$4<=n,O5,"") ->  | P8: =IF(P$4<=n,P5,"") -> 
C9: 0 | D9: =D2 -> -2 | E9: 0 | F9: =F2 -> 2.4 | G9: =IF(H$4<=n,G6,"") -> 0 | H9: =IF(H$4<=n,H6,"") -> -0.78 | I9: =IF(J$4<=n,I6,"") -> 0 | J9: =IF(J$4<=n,J6,"") -> 2.196 | K9: =IF(L$4<=n,K6,"") ->  | L9: =IF(L$4<=n,L6,"") ->  | M9: =IF(N$4<=n,M6,"") ->  | N9: =IF(N$4<=n,N6,"") ->  | O9: =IF(P$4<=n,O6,"") ->  | P9: =IF(P$4<=n,P6,"") -> 

Sheet Sheet3
